[Event "WYCC 2018 O14"]
[Site "Halkidiki"]
[Date "2018.10.29"]
[Round "10"]
[White "Bassini, Emile"]
[Black "Gombocz, Ferenc Jr."]
[Result "1-0"]
[ECO "C60"]
[WhiteElo "2002"]
[BlackElo "2271"]
[Annotator "NA"]
[PlyCount "91"]
[EventDate "2018.10.20"]
[EventType "swiss"]
[EventCountry "GRE"]
[SourceTitle "playchess.com"]
[Source "ChessBase"]
[SourceQuality "1"]
[TimeControl "40/5400+30:1800+30"]

1. e4 {[%emt 0:00:00]} e5 {[%emt 0:00:00]} 2. Nf3 {[%emt 0:00:00]} Nc6 {[%emt 0:00:00]} 3. Bb5 {[%emt 0:00:00]} g6 {[%emt 0:00:00]} 4. Nc3 {[%emt 0:06:37]} Bg7 {[%emt 0:03:48]} 5. d3 {[%emt 0:07:38]} a6 {[%emt 0:05:55]} 6. Ba4 {[%emt 0:00:12] LiveBook: 3 Games} d6 {[%emt 0:00:17]} 7. Bg5 {[%emt 0:02:55]} f6 {[%emt 0:01:55]} 8. Be3 {[%emt 0:01:07]} Nh6 {[%emt 0:00:55]} 9. d4 {[%emt 0:03:25]} Bd7 {[%emt 0:02:58]} 10. dxe5 {[%emt 0:04:54]} Nxe5 {[%emt 0:03:26]} 11. Bb3 {[%emt 0:06:17]} Nhf7 {[%emt 0:05:32]} 12. Nxe5 {[%emt 0:11:13]} Nxe5 {[%emt 0:06:30]} 13. Qe2 {[%emt 0:04:56]} Qc8 {[%emt 0:02:56]} 14. O-O {[%emt 0:06:52]} Be6 {[%emt 0:03:00]} 15. Nd5 {[%emt 0:00:33]} Bf7 $18 {[%emt 0:02:58]} 16. f4 {[%emt 0:02:40]} Nc6 {[%emt 0:00:28]} 17. e5 {[%emt 0:03:51]} fxe5 {[%emt 0:11:57]} 18. fxe5 {[%emt 0:00:28]} O-O {[%emt 0:00:47]} 19. exd6 {[%emt 0:07:59]} Kh8 {[%emt 0:08:28]} 20. Nxc7 {[%emt 0:04:45]} Bxb3 {[%emt 0:02:32]} 21. axb3 {[%emt 0:01:01]} Rb8 {[%emt 0:01:50]} 22. c3 {[%emt 0:00:50]} Qd7 {[%emt 0:00:48]} 23. Rad1 {[%emt 0:01:10]} Be5 {[%emt 0:00:38]} 24. Bh6 {[%emt 0:02:18]} Rf5 {[%emt 0:01:14]} 25. Rxf5 {[%emt 0:02:05]} gxf5 {[%emt 0:02:43]} 26. Qd2 {[%emt 0:04:05]} Rg8 {[%emt 0:02:05]} 27. Bf4 {[%emt 0:02:03]} Qg7 {[%emt 0:00:12]} 28. Bxe5 {[%emt 0:01:13]} Nxe5 {[%emt 0:00:33]} 29. Qe2 {[%emt 0:00:43]} f4 {[%emt 0:00:34]} 30. Re1 {[%emt 0:02:16]} Ng4 {[%emt 0:06:58]} 31. Nd5 {[%emt 0:02:50]} Qg5 {[%emt 0:02:34]} 32. Qd2 {[%emt 0:02:13]} Ne5 {[%emt 0:01:47]} 33. Kh1 {[%emt 0:01:40]} Nd3 {[%emt 0:03:21]} 34. Ne7 {[%emt 0:01:24]} f3 {[%emt 0:16:07]} 35. Qxg5 {[%emt 0:00:21]} Rxg5 {[%emt 0:00:04]} 36. d7 {[%emt 0:00:16]} Nf2+ {[%emt 0:00:33]} 37. Kg1 {[%emt 0:00:03]} Nh3+ {[%emt 0:00:06]} 38. Kf1 {[%emt 0:00:11]} fxg2+ {[%emt 0:00:06]} 39. Ke2 {[%emt 0:00:02]} Nf4+ {[%emt 0:01:05]} 40. Kd2 {[%emt 0:00:00]} Ne6 {[%emt 0:00:00]} 41. Rxe6 {[%emt 0:01:05]} Rg8 {[%emt 0:01:07]} 42. Nxg8 {[%emt 0:00:05]} g1=Q {[%emt 0:00:08]} 43. d8=Q {[%emt 0:00:09]} Qxh2+ {[%emt 0:00:32]} 44. Re2 {[%emt 0:00:10]} Qf4+ {[%emt 0:00:07]} 45. Kc2 {[%emt 0:00:09]} Qf5+ {[%emt 0:01:22]} 46. Qd3 {[%emt 0:00:06]} 1-0

[Event "WYCC 2018 O14"]
[Site "Halkidiki"]
[Date "2018.10.29"]
[Round "10"]
[White "Misyura, Ilya"]
[Black "Munshi, Aditya"]
[Result "1/2-1/2"]
[ECO "E06"]
[WhiteElo "1967"]
[BlackElo "2133"]
[Annotator "NA"]
[PlyCount "59"]
[EventDate "2018.10.20"]
[EventType "swiss"]
[EventCountry "GRE"]
[SourceTitle "playchess.com"]
[Source "ChessBase"]
[SourceQuality "1"]
[TimeControl "40/5400+30:1800+30"]

1. d4 {[%emt 0:00:00]} Nf6 {[%emt 0:00:00]} 2. c4 {[%emt 0:00:00]} e6 {[%emt 0:00:00]} 3. g3 {[%emt 0:00:00]} d5 {[%emt 0:00:40]} 4. Nf3 {[%emt 0:00:22]} Be7 {[%emt 0:01:39]} 5. Bg2 {[%emt 0:00:14]} O-O {[%emt 0:00:19]} 6. Qb3 {[%emt 0:00:30]} c5 {[%emt 0:09:01]} 7. cxd5 {[%emt 0:02:06]} Qxd5 {[%emt 0:13:10]} 8. Nc3 {[%emt 0:00:47]} Qxb3 {[%emt 0:07:58]} 9. axb3 {[%emt 0:00:07]} Nc6 {[%emt 0:18:53]} 10. dxc5 $11 {[%emt 0:00:41] LiveBook: 3 Games} e5 {[%emt 0:11:43]} 11. O-O {[%emt 0:02:11]} Bxc5 {[%emt 0:01:03]} 12. Na4 {[%emt 0:00:22]} Be7 {[%emt 0:01:57]} 13. Nb6 {[%emt 0:00:54]} Rb8 {[%emt 0:00:10]} 14. Nxc8 {[%emt 0:00:57]} Rbxc8 {[%emt 0:02:43]} 15. Be3 {[%emt 0:08:57]} b6 {[%emt 0:02:44]} 16. Nh4 {[%emt 0:04:26]} Na5 {[%emt 0:05:26]} 17. Nf5 {[%emt 0:01:28]} Rfe8 {[%emt 0:02:36]} 18. Bg5 {[%emt 0:17:21]} Bf8 {[%emt 0:07:34]} 19. Bxf6 {[%emt 0:04:32]} gxf6 {[%emt 0:00:11]} 20. Ra4 {[%emt 0:02:43]} Red8 {[%emt 0:02:02]} 21. Rg4+ {[%emt 0:07:05]} Kh8 {[%emt 0:00:01]} 22. Ra1 {[%emt 0:04:25]} Nxb3 {[%emt 0:01:07]} 23. Rxa7 {[%emt 0:05:07]} Rc1+ {[%emt 0:02:21]} 24. Bf1 {[%emt 0:00:43]} Nd2 {[%emt 0:01:23]} 25. Rxf7 {[%emt 0:00:46]} Rxf1+ {[%emt 0:04:53]} 26. Kg2 {[%emt 0:00:05]} Rc1 {[%emt 0:02:10]} 27. Rh4 {[%emt 0:11:54]} h6 {[%emt 0:00:40]} 28. Nxh6 {[%emt 0:00:35]} Bxh6 {[%emt 0:00:42]} 29. Rxh6+ {[%emt 0:00:13]} Kg8 {[%emt 0:00:04]} 30. Rhh7 1/2-1/2

[Event "WYCC 2018 O14"]
[Site "Halkidiki"]
[Date "2018.10.29"]
[Round "10"]
[White "Dao, Minh Nhat"]
[Black "Ognean, Mihnea-Ionut"]
[Result "1-0"]
[ECO "A45"]
[WhiteElo "1956"]
[BlackElo "2291"]
[Annotator "NA"]
[PlyCount "101"]
[EventDate "2018.10.20"]
[EventType "swiss"]
[EventCountry "GRE"]
[SourceTitle "playchess.com"]
[Source "ChessBase"]
[SourceQuality "1"]
[TimeControl "40/5400+30:1800+30"]

1. d4 {[%emt 0:00:00]} Nf6 {[%emt 0:00:00]} 2. Bg5 {[%emt 0:00:07]} e6 {[%emt 0:00:00]} 3. Nd2 {[%emt 0:00:38]} h6 {[%emt 0:00:59]} 4. Bh4 {[%emt 0:00:20]} c5 {[%emt 0:00:16]} 5. e3 {[%emt 0:02:06]} b6 {[%emt 0:00:43]} 6. Ngf3 {[%emt 0:03:50]} Bb7 {[%emt 0:01:00]} 7. Bd3 {[%emt 0:03:26]} Be7 {[%emt 0:00:36]} 8. c3 {[%emt 0:01:06]} Nc6 {[%emt 0:03:55]} 9. O-O {[%emt 0:00:57]} O-O {[%emt 0:00:56]} 10. a3 {[%emt 0:02:10]} d6 {[%emt 0:07:07] LiveBook: 11 Games} 11. Qe2 {[%emt 0:21:05]} a6 $146 {[%emt 0:17:35] A46: 1 d4 Nf6 2 Nf3 e6: Torre, London and Colle Systems} ({Predecessor:} 11... Nh5 12. Bxe7 Qxe7 13. Ba6 Nf6 14. Bxb7 Qxb7 15. Rad1 Rfd8 16. Rfe1 Rac8 17. h3 a6 18. Nf1 Na5 19. Ng3 cxd4 20. exd4 {0-1 (62) Beletic,D (2286)-Carlsen,M (2840) chess.com INT 2017}) 12. Rfd1 {[%emt 0:02:12]} Nh5 {[%emt 0:05:47]} 13. Bxe7 {[%emt 0:01:49]} Qxe7 {[%emt 0:00:08]} 14. b4 {[%emt 0:17:33]} a5 {[%emt 0:18:30]} 15. b5 {[%emt 0:07:54]} Nb8 {[%emt 0:00:31]} 16. Nc4 {[%emt 0:04:00]} Nd7 {[%emt 0:05:17]} 17. dxc5 {[%emt 0:05:18]} bxc5 {[%emt 0:00:27]} 18. Nxd6 {[%emt 0:00:35]} Bd5 {[%emt 0:04:03]} 19. Nc4 {[%emt 0:06:43]} f5 {[%emt 0:00:22]} 20. Nfe5 {[%emt 0:01:55]} Nxe5 {[%emt 0:01:20]} 21. Nxe5 {[%emt 0:00:12]} Qh4 $18 {[%emt 0:03:45]} 22. g3 {[%emt 0:01:36]} Qh3 {[%emt 0:07:28]} 23. Qf1 {[%emt 0:00:39]} Qxf1+ {[%emt 0:01:22]} 24. Bxf1 {[%emt 0:00:04]} Rfd8 {[%emt 0:00:23]} 25. c4 {[%emt 0:04:06]} Be4 {[%emt 0:00:08]} 26. Bg2 {[%emt 0:01:20]} Nf6 {[%emt 0:01:29]} 27. Bxe4 {[%emt 0:01:06]} Nxe4 {[%emt 0:00:26]} 28. Nc6 {[%emt 0:00:23]} Rd6 {[%emt 0:01:13]} 29. Rab1 {[%emt 0:07:45]} Kf7 {[%emt 0:02:28]} 30. f3 {[%emt 0:01:59]} Nd2 {[%emt 0:00:47]} 31. Rxd2 {[%emt 0:00:20]} Rxd2 {[%emt 0:00:05]} 32. b6 {[%emt 0:00:03]} Ra2 {[%emt 0:04:59]} 33. b7 {[%emt 0:00:26]} Re8 {[%emt 0:00:04]} 34. b8=Q {[%emt 0:00:37]} Rxb8 {[%emt 0:00:04]} 35. Rxb8 {[%emt 0:00:19]} Rxa3 {[%emt 0:00:05]} 36. Rb5 {[%emt 0:00:22]} a4 {[%emt 0:00:17]} 37. Rxc5 {[%emt 0:00:32]} Rxe3 {[%emt 0:00:10]} 38. Ra5 {[%emt 0:00:18]} a3 {[%emt 0:00:06]} 39. Nd4 {[%emt 0:02:07]} Rc3 {[%emt 0:01:37]} 40. Ra4 {[%emt 0:00:00]} Kf6 {[%emt 0:00:00]} 41. Kf2 {[%emt 0:03:43]} g5 {[%emt 0:01:28]} 42. Ke2 {[%emt 0:00:55]} Ke5 {[%emt 0:00:34]} 43. Nb5 {[%emt 0:01:55]} Rc2+ {[%emt 0:00:10]} 44. Kd3 {[%emt 0:00:23]} Rf2 {[%emt 0:01:45]} 45. Nd4 {[%emt 0:01:26]} a2 {[%emt 0:02:17]} 46. Ra6 {[%emt 0:00:27]} Kf6 {[%emt 0:00:04]} 47. Rxe6+ {[%emt 0:00:31]} Kf7 {[%emt 0:00:03]} 48. Ra6 {[%emt 0:00:19]} Rxh2 {[%emt 0:00:56]} 49. c5 {[%emt 0:01:14]} Ke7 {[%emt 0:01:04]} 50. Ra7+ {[%emt 0:00:04]} Kd8 {[%emt 0:00:06]} 51. c6 {[%emt 0:01:08]} 1-0

[Event "WYCC 2018 O14"]
[Site "Halkidiki"]
[Date "2018.10.29"]
[Round "10"]
[White "Horobrijs, Daniils"]
[Black "Czopor, Maciej"]
[Result "0-1"]
[ECO "B80"]
[WhiteElo "1918"]
[BlackElo "2219"]
[Annotator "NA"]
[PlyCount "76"]
[EventDate "2018.10.20"]
[EventType "swiss"]
[EventCountry "GRE"]
[SourceTitle "playchess.com"]
[Source "ChessBase"]
[SourceQuality "1"]
[TimeControl "40/5400+30:1800+30"]

1. e4 {[%emt 0:00:34]} c5 {[%emt 0:00:00]} 2. Nf3 {[%emt 0:00:05]} e6 {[%emt 0:00:00]} 3. d4 {[%emt 0:00:03]} cxd4 {[%emt 0:00:00]} 4. Nxd4 {[%emt 0:00:05]} Nf6 {[%emt 0:00:01]} 5. Nc3 {[%emt 0:00:09]} d6 {[%emt 0:00:04]} 6. Be3 {[%emt 0:00:42]} a6 {[%emt 0:00:07]} 7. f3 {[%emt 0:00:39]} b5 {[%emt 0:01:34]} 8. Qd2 {[%emt 0:00:13]} b4 {[%emt 0:00:52] B80: Sicilian Scheveningen: 6 g3 and 6 Be3, including English Attack} (8... Bb7 9. g4 Nfd7 10. O-O-O Nb6 11. Nb3 N8d7 12. Na5 Rb8 13. Bd4 Ba8 14. h4 Qc7 15. g5 b4 16. Nb1 e5 17. Bxb6 Rxb6 18. Nc4 Rc6 19. Ne3 {1-0 (70) Aronian,L (2767)-Nakamura,H (2777) Saint Louis 2018}) 9. Na4 {[%emt 0:00:07]} Nbd7 {[%emt 0:03:26]} 10. O-O-O {[%emt 0:00:22]} Bb7 {[%emt 0:05:12]} 11. Qxb4 {[%emt 0:04:07]} Rb8 {[%emt 0:06:25]} 12. Qe1 $146 {[%emt 0:00:59]} ({Predecessor:} 12. Qd2 d5 13. exd5 Nxd5 14. Bg5 Qc7 15. Nb3 Bb4 16. Qd4 O-O {1-0 (67) Solodovnichenko,Y (2526)-Voicu Jagodzinsky,C (2254) playchess.com INT 2006}) 12... Be7 {[%emt 0:09:43]} 13. g4 {[%emt 0:02:39]} Ne5 {[%emt 0:09:09]} 14. g5 {[%emt 0:17:27]} Nfd7 {[%emt 0:01:12]} 15. f4 {[%emt 0:01:17]} Bxe4 {[%emt 0:09:52]} 16. fxe5 {[%emt 0:02:04]} Bxh1 {[%emt 0:04:04]} 17. exd6 {[%emt 0:00:56]} Bxg5 {[%emt 0:02:05]} 18. Bxa6 {[%emt 0:00:40]} O-O {[%emt 0:05:57]} 19. Kb1 {[%emt 0:02:20]} Bxe3 {[%emt 0:06:54]} 20. Qxe3 $19 {[%emt 0:00:40]} Qa5 {[%emt 0:01:44]} 21. Qd3 {[%emt 0:38:53]} Qxa4 {[%emt 0:10:03]} 22. Bb5 {[%emt 0:21:04]} Rxb5 {[%emt 0:14:08]} 23. Qxb5 {[%emt 0:00:11]} Qxb5 {[%emt 0:00:09]} 24. Nxb5 {[%emt 0:00:06]} Bb7 {[%emt 0:00:46]} 25. Nc7 {[%emt 0:02:10]} e5 {[%emt 0:00:45]} 26. c4 {[%emt 0:00:52]} f5 {[%emt 0:00:31]} 27. b4 {[%emt 0:01:01]} f4 {[%emt 0:00:20]} 28. Kc1 {[%emt 0:01:09]} f3 {[%emt 0:00:31]} 29. Rf1 {[%emt 0:01:29]} Rf4 {[%emt 0:01:13]} 30. Kd2 {[%emt 0:01:16]} Rxc4 {[%emt 0:00:08]} 31. Ne6 {[%emt 0:00:25]} Rxb4 32. Ke3 {[%emt 0:00:35]} Re4+ {[%emt 0:02:43]} 33. Kf2 {[%emt 0:00:40]} Re2+ {[%emt 0:00:17]} 34. Kg3 {[%emt 0:00:04]} Rg2+ {[%emt 0:00:48]} 35. Kh3 {[%emt 0:00:02]} Be4 {[%emt 0:01:27]} 36. Nc7 {[%emt 0:01:08]} Bf5+ {[%emt 0:00:10]} 37. Kh4 {[%emt 0:00:02]} Rg4+ {[%emt 0:00:28]} 38. Kh5 {[%emt 0:01:12]} Nf6# {[%emt 0:00:15] Rh1} 0-1

[Event "WYCC 2018 O14"]
[Site "Halkidiki"]
[Date "2018.10.29"]
[Round "10"]
[White "Radojicic, Aleksandar M"]
[Black "Soriano Quispe, Ivan Excender"]
[Result "0-1"]
[ECO "A45"]
[WhiteElo "1814"]
[BlackElo "2054"]
[Annotator "NA RC"]
[PlyCount "162"]
[EventDate "2018.10.20"]
[EventType "swiss"]
[EventCountry "GRE"]
[SourceTitle "playchess.com"]
[Source "ChessBase"]
[SourceQuality "1"]
[TimeControl "40/5400+30:1800+30"]

1. d4 {[%emt 0:00:00]} Nf6 {[%emt 0:00:00]} 2. g3 {[%emt 0:00:00]} e6 {[%emt 0:00:00]} 3. Bg2 {[%emt 0:00:19]} d5 {[%emt 0:00:22]} 4. Nf3 {[%emt 0:00:44]} c5 {[%emt 0:08:08]} 5. c3 {[%emt 0:02:13]} Nc6 {[%emt 0:00:13]} 6. O-O {[%emt 0:00:17]} Be7 {[%emt 0:01:33]} 7. Re1 {[%emt 0:05:40]} O-O {[%emt 0:01:03]} 8. Bg5 {[%emt 0:00:34]} h6 {[%emt 0:04:28]} 9. Bxf6 {[%emt 0:01:03]} Bxf6 {[%emt 0:00:05]} 10. dxc5 {[%emt 0:00:30]} Qe7 {[%emt 0:04:32]} 11. e4 {[%emt 0:09:17]} dxe4 {[%emt 0:01:15]} 12. Nfd2 {[%emt 0:04:50]} Rd8 {[%emt 0:37:28]} 13. Qe2 {[%emt 0:09:30]} Qxc5 {[%emt 0:00:51]} 14. Nxe4 {[%emt 0:00:40]} Qe7 {[%emt 0:00:06]} 15. f4 {[%emt 0:06:45]} Bd7 {[%emt 0:04:54]} 16. Nbd2 {[%emt 0:05:59]} g6 {[%emt 0:06:42]} 17. Nxf6+ {[%emt 0:02:32]} Qxf6 {[%emt 0:00:02]} 18. Rad1 {[%emt 0:07:27]} Be8 {[%emt 0:03:01]} 19. h4 {[%emt 0:14:45]} Qf5 {[%emt 0:04:33]} 20. Kh2 {[%emt 0:03:42]} h5 {[%emt 0:10:59]} 21. Ne4 {[%emt 0:03:09]} Rxd1 {[%emt 0:02:21]} 22. Rxd1 {[%emt 0:00:49]} Rb8 {[%emt 0:03:54]} 23. b4 {[%emt 0:00:41]} Ne7 {[%emt 0:03:18]} 24. c4 {[%emt 0:02:45]} Bc6 {[%emt 0:00:47]} 25. Qd3 {[%emt 0:06:53]} Bxe4 {[%emt 0:00:52]} 26. Bxe4 {[%emt 0:01:04]} Qf6 {[%emt 0:00:48]} 27. Rd2 {[%emt 0:01:49]} Nc6 {[%emt 0:00:34]} 28. Bxc6 {[%emt 0:02:17]} bxc6 {[%emt 0:00:02]} 29. a3 {[%emt 0:02:05]} Rb6 {[%emt 0:01:00]} 30. c5 {[%emt 0:03:39]} Rb7 {[%emt 0:00:28]} 31. Qd6 {[%emt 0:01:44]} Qc3 {[%emt 0:00:13]} 32. Rd3 {[%emt 0:01:30]} Qe1 {[%emt 0:00:01]} 33. Rd2 {[%emt 0:00:30]} a5 {[%emt 0:00:13]} 34. Qd8+ {[%emt 0:00:40]} Kh7 {[%emt 0:00:16]} 35. Qd4 {[%emt 0:00:19]} axb4 {[%emt 0:00:22]} 36. axb4 {[%emt 0:00:03]} Ra7 {[%emt 0:00:16]} 37. Qf2 {[%emt 0:00:55]} Qc1 {[%emt 0:01:09]} 38. Rb2 {[%emt 0:00:30]} Rb7 {[%emt 0:00:59]} 39. Qd2 {[%emt 0:00:48]} Qa1 {[%emt 0:00:30]} 40. Kg2 {[%emt 0:00:00]} Qa3 {[%emt 0:00:00]} 41. Qd4 {[%emt 0:09:00]} Qa1 {[%emt 0:03:32]} 42. Qd2 {[%emt 0:00:52]} Rb8 {[%emt 0:08:37]} 43. Kh2 {[%emt 0:02:01]} Rb7 {[%emt 0:04:08]} 44. Kg2 {[%emt 0:00:12]} Kg7 {[%emt 0:01:47]} 45. Ra2 {[%emt 0:01:04]} Qb1 {[%emt 0:04:03]} 46. Qb2+ {[%emt 0:00:36]} Qxb2+ {[%emt 0:00:06]} 47. Rxb2 {[%emt 0:00:05]} Kf6 {[%emt 0:01:28]} 48. Kf3 {[%emt 0:00:22]} Kf5 {[%emt 0:01:26]} 49. b5 {[%emt 0:11:33]} cxb5 {[%emt 0:00:02]} 50. c6 {[%emt 0:00:11]} Rc7 {[%emt 0:01:01]} 51. Rxb5+ {[%emt 0:00:32]} Kf6 {[%emt 0:00:34]} 52. Rc5 {[%emt 0:05:11]} Ke7 {[%emt 0:00:13]} 53. g4 {[%emt 0:01:54]} Kd6 {[%emt 0:00:48]} 54. Ra5 {[%emt 0:00:38]} hxg4+ {[%emt 0:02:08]} 55. Kxg4 {[%emt 0:00:04]} Rxc6 {[%emt 0:02:25]} 56. h5 {[%emt 0:00:36]} gxh5+ {[%emt 0:00:41]} 57. Rxh5 {[%emt 0:02:08]} Rc4 {[%emt 0:02:58]} 58. Ra5 {[%emt 0:00:58]} f6 {[%emt 0:00:59]} 59. Kf3 {[%emt 0:00:25]} Rc5 {[%emt 0:00:52]} 60. Ra1 {[%emt 0:00:43]} Rc3+ {[%emt 0:00:35]} 61. Kf2 {[%emt 0:00:33]} Kd5 {[%emt 0:00:49]} 62. Re1 {[%emt 0:00:45]} Ra3 {[%emt 0:01:08]} 63. Re2 {[%emt 0:00:26]} Rh3 {[%emt 0:00:53]} 64. Kg2 {[%emt 0:00:14]} Rh5 {[%emt 0:00:50]} 65. Re3 {[%emt 0:00:19]} Rf5 {[%emt 0:00:53]} 66. Kg3 {[%emt 0:00:20]} e5 {[%emt 0:00:27]} 67. fxe5 {[%emt 0:00:13]} fxe5 {[%emt 0:00:04]} 68. Rd3+ {[%emt 0:01:05]} Kc4 {[%emt 0:00:38]} 69. Rd8 {[%emt 0:00:39]} e4 {[%emt 0:00:21]} 70. Rd7 {[%emt 0:00:25]} e3 {[%emt 0:00:16]} 71. Kg2 {[%emt 0:00:23]} e2 {[%emt 0:01:10]} 72. Rc7+ {[%emt 0:00:43]} Kd3 {[%emt 0:00:11]} 73. Rd7+ {[%emt 0:00:22]} Kc2 {[%emt 0:00:28]} 74. Rc7+ {[%emt 0:00:30]} Kd1 {[%emt 0:00:06]} 75. Rd7+ {[%emt 0:00:09]} Ke1 {[%emt 0:00:10]} 76. Rd8 {[%emt 0:01:37]} Rg5+ {[%emt 0:00:47]} 77. Kh2 {[%emt 0:00:25]} Kf2 {[%emt 0:00:20]} 78. Rf8+ {[%emt 0:00:05]} Ke3 {[%emt 0:00:25]} 79. Re8+ {[%emt 0:00:05]} Kf3 {[%emt 0:00:39]} 80. Kh1 {[%emt 0:00:28]} e1=Q+ {[%emt 0:00:44]} 81. Rxe1 {[%emt 0:00:09]} Kf2 0-1

[Event "WYCC 2018 O14"]
[Site "Halkidiki"]
[Date "2018.10.29"]
[Round "10"]
[White "Ong, Yi Herng Joel"]
[Black "Rasti, Arvin"]
[Result "1/2-1/2"]
[ECO "A46"]
[WhiteElo "1730"]
[BlackElo "2064"]
[Annotator "NA"]
[PlyCount "26"]
[EventDate "2018.10.20"]
[EventType "swiss"]
[EventCountry "GRE"]
[SourceTitle "playchess.com"]
[Source "ChessBase"]
[SourceQuality "1"]
[TimeControl "40/5400+30:1800+30"]

1. d4 {[%emt 0:00:00]} Nf6 {[%emt 0:00:00]} 2. Nf3 {[%emt 0:00:00]} d5 {[%emt 0:00:00]} 3. c4 {[%emt 0:00:00]} c6 {[%emt 0:00:49]} 4. Qc2 {[%emt 0:00:01]} e6 {[%emt 0:03:24]} 5. e3 {[%emt 0:00:17]} Nbd7 {[%emt 0:01:10]} 6. Bd3 {[%emt 0:00:58]} Bd6 {[%emt 0:00:44]} 7. O-O {[%emt 0:00:26]} O-O {[%emt 0:03:08]} 8. Nc3 {[%emt 0:04:53]} Re8 {[%emt 0:08:10]} 9. e4 {[%emt 0:14:47]} dxe4 {[%emt 0:06:22]} 10. Nxe4 {[%emt 0:00:26]} Nxe4 {[%emt 0:00:20]} 11. Bxe4 {[%emt 0:00:07]} h6 {[%emt 0:00:55]} 12. b3 {[%emt 0:11:12]} Nf6 {[%emt 0:02:39]} 13. Bb2 {[%emt 0:04:11]} Qa5 {[%emt 0:04:29]} 1/2-1/2

[Event "WYCC 2018 O14"]
[Site "Halkidiki"]
[Date "2018.10.30"]
[Round "11"]
[White "Ognean, Mihnea-Ionut"]
[Black "Patrelakis, Evaggelos"]
[Result "1-0"]
[ECO "E92"]
[WhiteElo "2291"]
[BlackElo "2146"]
[Annotator "NA"]
[PlyCount "79"]
[EventDate "2018.10.20"]
[EventType "swiss"]
[EventCountry "GRE"]
[SourceTitle "playchess.com"]
[Source "ChessBase"]
[SourceQuality "1"]
[TimeControl "40/5400+30:1800+30"]

1. d4 {[%emt 0:00:00]} Nf6 {[%emt 0:00:00]} 2. c4 {[%emt 0:00:00]} g6 {[%emt 0:00:00]} 3. Nc3 {[%emt 0:00:00]} Bg7 {[%emt 0:00:00]} 4. e4 {[%emt 0:00:00]} d6 {[%emt 0:00:00]} 5. Nf3 {[%emt 0:00:00]} O-O {[%emt 0:00:09]} 6. Be2 {[%emt 0:00:00]} e5 {[%emt 0:00:09]} 7. d5 {[%emt 0:00:00]} a5 {[%emt 0:00:12]} 8. Bg5 {[%emt 0:00:04]} h6 {[%emt 0:00:06]} 9. Be3 {[%emt 0:00:05]} Ng4 {[%emt 0:00:11]} 10. Bc1 {[%emt 0:00:04]} Na6 {[%emt 0:03:19]} 11. h3 {[%emt 0:00:05]} Nf6 {[%emt 0:00:15]} 12. Be3 {[%emt 0:00:04]} Nh5 {[%emt 0:02:48]} 13. Nd2 {[%emt 0:00:05] E92: King's Indian: Classical: 6 Be2 e5: 7 dxe5, 7 Be3 and Petrosian System without 7...Nbd7} Nf4 {[%emt 0:00:21]} 14. Bf1 {[%emt 0:00:04]} Nb4 {[%emt 0:07:30]} (14... Nc5 15. Nb3 Nxb3 16. axb3 c5 17. g3 Nh5 18. h4 Nf6 19. Bh3 Bxh3 20. Rxh3 Qd7 {0-1 (62) Ikonnikov,V (2546)-Miciano,J (2381) Vlissingen 2018}) 15. Ndb1 {[%emt 0:00:05]} g5 $146 {[%emt 0:13:09]} ({Predecessor:} 15... Bd7 16. g3 Nh5 17. a3 Na6 18. Nd2 Nf6 19. Be2 Nh7 20. Qb3 b6 {½-½ (61) Yakovlev,O (2364)-Santamaria Perez,T (2364) ICCF email 2014}) 16. a3 {[%emt 0:00:39]} Na6 {[%emt 0:00:02]} 17. g3 {[%emt 0:03:20]} Ng6 {[%emt 0:00:09]} 18. Nd2 {[%emt 0:04:27]} f5 {[%emt 0:05:13]} 19. exf5 {[%emt 0:00:12]} Bxf5 {[%emt 0:00:07]} 20. Nde4 {[%emt 0:02:37]} b6 {[%emt 0:03:13]} 21. Be2 {[%emt 0:22:22]} Nc5 {[%emt 0:05:51]} 22. Bxc5 {[%emt 0:00:09]} bxc5 {[%emt 0:00:26]} 23. Bg4 {[%emt 0:00:06]} Qd7 {[%emt 0:09:41]} 24. Qe2 {[%emt 0:03:30]} Ne7 {[%emt 0:06:49]} 25. a4 {[%emt 0:07:31]} (25. O-O-O $16) 25... c6 {[%emt 0:08:48]} 26. Rd1 {[%emt 0:02:22]} cxd5 {[%emt 0:01:52]} 27. Nxd5 {[%emt 0:01:30]} Nxd5 {[%emt 0:00:43]} 28. Rxd5 {[%emt 0:00:18]} Bxg4 {[%emt 0:01:39]} 29. hxg4 {[%emt 0:01:31]} Qxa4 {[%emt 0:03:32]} 30. O-O {[%emt 0:03:57]} Rab8 {[%emt 0:11:25]} 31. Nxd6 {[%emt 0:05:33]} ({Weaker is} 31. Rxd6 Qa2 $16) 31... Qb3 {[%emt 0:06:44]} 32. Nf5 {[%emt 0:07:24]} Qxb2 {[%emt 0:03:01]} 33. Qe4 {[%emt 0:00:25]} Rf7 {[%emt 0:02:28]} 34. Rfd1 {[%emt 0:01:09]} Rbf8 {[%emt 0:02:08]} 35. Rd7 {[%emt 0:02:55]} a4 {[%emt 0:04:20]} 36. Rxf7 {[%emt 0:00:49]} Rxf7 {[%emt 0:00:02]} 37. Rd8+ {[%emt 0:00:19]} Rf8 {[%emt 0:00:10]} 38. Ne7+ {[%emt 0:00:59]} Kf7 {[%emt 0:00:11]} 39. Qd5+ {[%emt 0:00:26]} Kxe7 {[%emt 0:00:24]} 40. Rd7+ {[%emt 0:00:00]} 1-0